bitfinex/quotes_BTCUSD_20240911
["timestamp","ask_amount","ask_price","bid_price","bid_amount"]
[1726070258349,0.176151,56770.0,56761.0,0.0179]
[1726070258350,0.09,56774.0,56771.0,0.176145]
[1726070258573,0.09,56774.0,56767.0,0.352312]
[1726070258574,0.03,56773.0,56767.0,0.352312]
[1726070258799,0.03,56770.0,56766.0,0.004]
[1726070259013,0.01483628,56769.0,56765.0,0.199163]
[1726070259234,0.01583628,56768.0,56766.0,0.176161]
[1726070259451,0.01483628,56767.0,56765.0,0.023]
[1726070259675,0.01483628,56767.0,56766.0,0.176161]
[1726070259879,0.01483628,56767.0,56766.0,0.981707]
[1726070260313,0.01483628,56767.0,56766.0,0.629384]
[1726070260530,0.01457869,56767.0,56766.0,0.564484]
[1726070260974,0.01457869,56767.0,56766.0,0.916807]
[1726070261198,0.01457869,56767.0,56766.0,0.564484]
[1726070261650,0.03041926,56767.0,56766.0,0.043]
[1726070261907,0.01557869,56767.0,56766.0,0.007]
[1726070262149,0.03141926,56767.0,56766.0,0.021]
[1726070262377,0.01684057,56767.0,56766.0,0.021]
[1726070262611,0.01684057,56767.0,56766.0,0.197161]
[1726070262848,0.01684057,56767.0,56766.0,0.549484]
[1726070263804,0.01684057,56767.0,56766.0,0.572484]
[1726070264058,0.04446267,56767.0,56766.0,0.572484]
[1726070264286,0.04446267,56767.0,56766.0,0.924807]
[1726070264771,0.0296221,56767.0,56766.0,0.924807]
[1726070265027,0.0296221,56767.0,56766.0,0.572484]
[1726070265308,0.030819,56778.0,56766.0,0.572484]
[1726070265309,0.000819,56778.0,56777.0,1.042937]
[1726070265535,0.000819,56778.0,56777.0,1.747447]
[1726070265783,0.000819,56778.0,56777.0,1.92361655]
[1726070266255,0.000819,56778.0,56777.0,1.042937]
[1726070266497,0.000819,56778.0,56777.0,0.262127]
[1726070266725,0.000819,56778.0,56777.0,0.966637]
[1726070266994,0.000819,56778.0,56777.0,1.318892]
[1726070267227,0.001819,56778.0,56777.0,1.332892]
[1726070267455,0.001819,56778.0,56777.0,1.5140579]
[1726070268605,0.001819,56778.0,56777.0,1.346892]
[1726070268838,0.02943266,56778.0,56777.0,1.346892]
[1726070270735,0.001819,56778.0,56777.0,1.346892]
[1726070273807,0.001819,56778.0,56777.0,1.699147]
[1726070274030,0.001819,56778.0,56777.0,1.429392]
[1726070274260,0.001819,56778.0,56777.0,1.98924848]
[1726070274491,0.0021386,56788.0,56782.0,0.387484]
[1726070274726,0.0021386,56788.0,56785.0,0.586567]
[1726070274986,0.0021386,56788.0,56785.0,0.903512]
[1726070275207,0.0021386,56788.0,56785.0,0.551307]
[1726070275443,0.0021386,56788.0,56785.0,0.903512]
[1726070275919,0.0021386,56788.0,56785.0,0.551307]
[1726070276161,0.0021386,56788.0,56785.0,0.903512]
[1726070276846,0.0021386,56788.0,56785.0,0.952772]
[1726070277087,0.0021386,56788.0,56785.0,1.06985561]
[1726070277393,0.0021386,56788.0,56785.0,1.04859561]
[1726070277614,0.0021386,56788.0,56785.0,0.931512]
[1726070278101,0.02761015,56787.0,56785.0,0.931512]
[1726070279048,0.02761015,56787.0,56785.0,0.966772]
[1726070279295,0.02761015,56787.0,56785.0,0.931512]
[1726070279759,0.02761015,56787.0,56785.0,1.363617]
[1726070280007,0.02761015,56787.0,56785.0,0.931512]
[1726070280984,0.02761015,56787.0,56785.0,1.4072189]
[1726070281224,0.0021386,56788.0,56785.0,1.0902739]
[1726070281947,0.0021386,56788.0,56785.0,0.966772]
[1726070282173,0.0021386,56788.0,56785.0,1.318977]
[1726070282412,0.0021386,56788.0,56785.0,0.966772]
[1726070282636,0.0021386,56788.0,56785.0,0.028]
[1726070282869,0.176919,56786.0,56785.0,0.028]
[1726070283107,0.00082,56786.0,56785.0,0.028]
[1726070283657,1.47078224,56786.0,56785.0,0.028]
[1726070283911,1.48462645,56786.0,56785.0,0.014]
[1726070284153,1.48462645,56786.0,56785.0,0.013]
[1726070284417,0.176125,56778.0,56769.0,0.352301]
[1726070284654,0.17473675,56786.0,56775.0,0.30350695]
[1726070284932,0.17473675,56786.0,56782.0,0.17611]
[1726070285179,0.02843675,56786.0,56782.0,0.30350695]
[1726070285645,0.02843675,56786.0,56783.0,0.199107]
[1726070285897,0.20453575,56786.0,56785.0,0.036]
[1726070286138,0.20453575,56786.0,56785.0,0.045]
[1726070286355,0.02843675,56786.0,56785.0,0.045]
[1726070286579,0.02843675,56786.0,56785.0,0.036]
[1726070287033,0.02843675,56786.0,56785.0,0.9566344]
[1726070287263,0.02843675,56786.0,56785.0,0.89493635]
[1726070287523,0.02843675,56786.0,56785.0,1.20701895]
[1726070287797,0.02843675,56786.0,56785.0,0.85481395]
[1726070288033,0.02843675,56786.0,56785.0,1.24227895]
[1726070288281,0.02843675,56786.0,56785.0,1.25627895]
[1726070288512,0.02843675,56786.0,56785.0,1.24227895]
[1726070288843,0.00082,56798.0,56797.0,1.20683395]
[1726070289012,0.00082,56798.0,56797.0,0.85470295]
[1726070289238,0.00082,56798.0,56797.0,0.551196]
[1726070289748,0.00082,56798.0,56797.0,0.903327]
[1726070290257,0.00082,56798.0,56797.0,1.65992495]
[1726070290486,0.00082,56798.0,56797.0,2.25964844]
[1726070290713,0.00082,56798.0,56797.0,1.90751744]
[1726070290960,0.00082,56798.0,56797.0,1.91851744]
[1726070291442,0.00082,56798.0,56797.0,1.93251744]
[1726070292143,0.00082,56798.0,56797.0,1.91851744]
[1726070292672,0.00082,56798.0,56797.0,1.93251744]
[1726070292898,0.00082,56798.0,56797.0,1.92151744]
[1726070293148,0.00082,56798.0,56797.0,1.93551744]
[1726070293388,0.00082,56798.0,56797.0,2.28764844]
[1726070293858,0.00082,56798.0,56797.0,1.93551744]
[1726070294097,0.00082,56798.0,56797.0,2.28764844]
[1726070294331,0.0042589,56802.0,56801.0,0.938525]
[1726070294585,0.0042589,56802.0,56801.0,1.80106944]
[1726070294813,0.0042589,56802.0,56801.0,1.94656944]
[1726070295531,0.0042589,56802.0,56801.0,1.96056944]
[1726070295762,0.0021386,56811.0,56810.0,1.232175]
[1726070296247,0.0021386,56811.0,56810.0,0.903125]
[1726070296251,0.0664386,56811.0,56810.0,0.023]
[1726070296680,0.0664386,56811.0,56801.0,0.028]
[1726070296681,0.03,56803.0,56801.0,0.028]
[1726070296688,1.46535,56802.0,56801.0,0.028]
[1726070297165,1.46535,56802.0,56801.0,0.014]
[1726070297166,1.05325,56802.0,56801.0,0.014]
[1726070297403,1.05325,56802.0,56789.0,0.352179]
[1726070297404,0.176067,56797.0,56789.0,0.352179]
[1726070297648,0.352141,56796.0,56789.0,0.0655686]
[1726070297874,0.176079,56793.0,56788.0,0.176093]
[1726070298121,0.03,56797.0,56786.0,0.176097]
[1726070298122,0.176085,56791.0,56786.0,0.176097]
[1726070298380,0.352154,56794.0,56784.0,0.176103]
[1726070298629,0.0807,56795.0,56783.0,0.001636]
[1726070298871,0.0646,56794.0,56783.0,0.001636]
[1726070299137,0.02761126,56792.0,56791.0,0.563512]
[1726070299390,0.02761126,56792.0,56791.0,0.86701895]
[1726070299645,0.02761126,56792.0,56791.0,1.57135495]
[1726070299882,0.02761126,56792.0,56791.0,1.21918695]
[1726070300104,0.02761126,56792.0,56791.0,1.24218695]
[1726070300608,0.02761126,56792.0,56791.0,1.20692695]
[1726070300834,0.0786,56806.0,56805.0,0.528121]
[1726070301063,0.0786,56810.0,56806.0,0.375071]
[1726070301288,0.0786,56810.0,56809.0,0.352056]
[1726070301530,0.09342397,56810.0,56809.0,0.023]
[1726070301753,0.09342397,56810.0,56803.0,0.352089]
[1726070301754,0.26944897,56810.0,56805.0,0.023]
[1726070301979,0.09342397,56810.0,56808.0,0.19903]
[1726070302201,0.01482397,56809.0,56808.0,0.023]
[1726070302478,0.01482397,56809.0,56806.0,0.528108]
[1726070302479,0.01482397,56809.0,56807.0,0.023]
[1726070302728,0.176037,56806.0,56805.0,0.014]
[1726070303007,1.110487,56806.0,56805.0,0.014]
[1726070303236,1.464562,56806.0,56805.0,0.014]
[1726070303708,0.0828,56796.0,56787.0,0.176096]
[1726070303955,0.352152,56794.0,56784.0,0.352208]
[1726070304189,0.0641,56793.0,56785.0,0.352203]
[1726070304416,0.0641,56793.0,56791.0,0.001636]
[1726070305328,0.0917108,56793.0,56791.0,0.001636]
[1726070305844,0.0917108,56793.0,56792.0,0.551243]
[1726070306077,0.0276108,56793.0,56792.0,1.3143809]
[1726070306347,0.0276108,56793.0,56792.0,1.61788785]
[1726070306832,0.000818,56802.0,56801.0,0.938525]
[1726070307061,0.000818,56802.0,56801.0,1.98948395]
[1726070307290,0.000818,56802.0,56801.0,2.1656535]
[1726070307586,0.000818,56802.0,56801.0,2.2265535]
[1726070307801,0.0041391,56822.0,56801.0,2.2265535]
[1726070307802,0.0041391,56822.0,56821.0,0.234251]
[1726070308027,0.0041391,56822.0,56821.0,1.59370395]
[1726070308252,0.0041391,56822.0,56821.0,2.10505635]
[1726070309444,0.0041391,56822.0,56821.0,2.11905635]
[1726070310354,0.0041391,56822.0,56821.0,1.304197]
[1726070310572,0.0041391,56822.0,56821.0,0.938215]
[1726070311009,0.0041391,56822.0,56821.0,0.952215]
[1726070311220,0.0041391,56822.0,56821.0,1.25572195]
[1726070311642,0.0041391,56822.0,56821.0,1.62170395]
[1726070311858,0.0041391,56822.0,56821.0,1.43189235]
[1726070312083,0.0041391,56822.0,56821.0,1.78387435]
[1726070312516,0.0041391,56822.0,56821.0,2.13585635]
[1726070312759,0.0041391,56822.0,56821.0,1.75587435]
[1726070312968,0.0041391,56822.0,56821.0,1.76987435]
[1726070313418,0.0041391,56822.0,56821.0,1.75587435]
[1726070313661,0.0041391,56822.0,56821.0,1.59370395]
[1726070313881,0.0041391,56822.0,56821.0,1.60770395]
[1726070314548,0.0041391,56822.0,56821.0,1.62170395]
[1726070314888,0.0041391,56822.0,56821.0,1.60770395]
[1726070315102,0.0041391,56822.0,56821.0,1.62170395]
[1726070315320,0.0041391,56822.0,56821.0,1.78387435]
[1726070316466,0.0041391,56822.0,56821.0,2.13585635]
[1726070317156,0.0041391,56822.0,56821.0,1.78387435]
[1726070317383,0.0041391,56822.0,56821.0,1.62170395]
[1726070317830,0.0041391,56822.0,56821.0,1.97368595]
[1726070318091,0.0041391,56822.0,56821.0,2.40276795]
[1726070318324,0.0021386,56834.0,56833.0,2.02245295]
[1726070318591,0.0041391,56841.0,56840.0,1.266784]
[1726070318824,0.0041391,56841.0,56840.0,2.6005259]
[1726070319039,0.0021386,56856.0,56842.0,1.289742]
[1726070319270,0.0021386,56856.0,56846.0,1.30583395]
[1726070319271,0.52535264,56854.0,56846.0,1.30583395]
[1726070319503,0.52535264,56854.0,56846.0,2.00948795]
[1726070319727,0.00082,56855.0,56846.0,2.00948795]
[1726070320455,0.00082,56855.0,56846.0,1.65766095]
[1726070320928,0.00082,56855.0,56846.0,1.67166095]
[1726070321169,0.00082,56855.0,56846.0,2.19722032]
[1726070321935,0.00082,56855.0,56854.0,0.937705]
[1726070322405,0.00082,56855.0,56854.0,1.289483]
[1726070322868,0.00082,56855.0,56854.0,0.585927]
[1726070323104,0.00082,56855.0,56854.0,0.951705]
[1726070323375,0.00082,56855.0,56854.0,0.774627]
[1726070323629,0.00082,56855.0,56854.0,0.028]
[1726070323630,0.669278,56855.0,56854.0,0.028]
[1726070324109,1.02105,56855.0,56854.0,0.028]
[1726070324330,0.17362,56855.0,56854.0,0.028]
[1726070324551,0.16920105,56855.0,56854.0,0.028]
[1726070325220,0.16920105,56855.0,56847.0,0.351817]
[1726070325436,0.16920105,56855.0,56854.0,0.028]
[1726070325696,0.16920105,56855.0,56854.0,0.014]
[1726070325909,0.16920105,56855.0,56847.0,0.175909]
[1726070326136,0.16920105,56855.0,56854.0,0.009]
[1726070326373,0.16920105,56855.0,56854.0,0.005]
[1726070326831,0.16920105,56855.0,56851.0,0.175896]
[1726070327085,0.16920105,56855.0,56853.0,0.175892]
[1726070327283,0.16920105,56855.0,56853.0,0.023]
[1726070327767,0.16920105,56855.0,56849.0,0.374805]
[1726070328006,0.16920105,56855.0,56852.0,0.023]
[1726070328553,0.16920105,56855.0,56847.0,0.394081]
[1726070328554,0.16920105,56855.0,56850.0,0.1989]
[1726070328774,0.16920105,56855.0,56852.0,0.023]
[1726070329001,0.16920105,56855.0,56854.0,0.01]
[1726070329237,0.16920105,56855.0,56854.0,0.006]
[1726070329473,0.17120105,56855.0,56854.0,0.006]
[1726070329708,0.16920105,56855.0,56854.0,0.374778]
[1726070329933,0.16920105,56855.0,56854.0,0.5893448]
[1726070330181,0.16920105,56855.0,56854.0,0.9763828]
[1726070330415,0.10760105,56855.0,56854.0,1.3281608]
[1726070330621,0.10760105,56855.0,56854.0,1.3049008]
[1726070330849,0.02840105,56855.0,56854.0,1.3049008]
[1726070331298,0.00082,56855.0,56854.0,0.562667]
[1726070331518,0.00082,56855.0,56854.0,0.914445]
[1726070331973,0.00082,56855.0,56854.0,0.902445]
[1726070332200,0.00082,56855.0,56854.0,0.951705]
[1726070332416,0.00082,56855.0,56854.0,0.916445]
[1726070332635,0.00082,56855.0,56854.0,0.913445]
[1726070333072,0.00082,56855.0,56854.0,1.0429684]
[1726070333293,0.00082,56855.0,56854.0,1.4300064]
[1726070334054,0.00082,56855.0,56854.0,1.4440064]
[1726070334926,0.00082,56855.0,56854.0,1.4300064]
[1726070335142,0.00082,56855.0,56854.0,1.4440064]
[1726070335455,0.00082,56855.0,56854.0,1.7957844]
[1726070335652,0.00082,56855.0,56854.0,1.7677844]
[1726070335872,0.00082,56855.0,56854.0,1.7817844]
[1726070336130,0.00082,56855.0,56854.0,1.4440064]
[1726070336347,0.00082,56855.0,56854.0,1.317483]
[1726070336566,0.00082,56855.0,56854.0,1.303483]
[1726070336812,0.000818,56859.0,56858.0,0.914642]
[1726070337048,0.143418,56859.0,56858.0,0.175876]
[1726070337267,0.143418,56859.0,56858.0,0.879382]
[1726070337494,0.19857192,56859.0,56858.0,0.9673202]
[1726070338179,0.19857192,56859.0,56858.0,0.937642]
[1726070338648,0.19857192,56859.0,56858.0,0.550629]
[1726070338891,0.19857192,56859.0,56858.0,0.198876]
[1726070339113,0.19857192,56859.0,56858.0,0.550629]
[1726070339340,0.19857192,56859.0,56858.0,0.564629]
[1726070339801,0.19857192,56859.0,56858.0,0.0509369]
[1726070340026,0.37444492,56859.0,56858.0,0.0509369]
[1726070340281,0.75619192,56859.0,56858.0,0.028]
[1726070340500,0.46644492,56859.0,56858.0,0.028]
[1726070340723,0.28857192,56859.0,56858.0,0.028]
[1726070340960,0.28857192,56859.0,56858.0,0.014]
[1726070341216,0.17099557,56859.0,56858.0,0.560617]
[1726070341647,0.17099557,56859.0,56858.0,0.225136]
[1726070341649,0.34886857,56859.0,56858.0,0.014]
[1726070341883,0.17299557,56859.0,56858.0,0.014]
[1726070342110,0.79061557,56859.0,56858.0,0.014]
[1726070342339,1.14236257,56859.0,56858.0,0.026]
[1726070342801,0.002,56853.0,56849.0,0.351804]
[1726070343033,0.03,56858.0,56856.0,0.175881]
[1726070343282,0.03,56857.0,56852.0,0.351789]
[1726070343528,0.03,56857.0,56856.0,0.175882]
[1726070343766,0.03,56858.0,56857.0,0.175879]
[1726070344242,0.17099557,56859.0,56857.0,0.175878]
[1726070344467,0.002,56857.0,56853.0,0.023]
[1726070344725,0.002,56857.0,56850.0,0.023]
[1726070344726,0.351766,56856.0,56850.0,0.023]
[1726070344977,0.002,56853.0,56850.0,0.023]
[1726070345217,0.0769,56852.0,56850.0,0.023]
[1726070345459,0.0769,56852.0,56844.0,0.351835]
[1726070345460,0.0769,56852.0,56851.0,0.023]
[1726070345705,0.0769,56852.0,56851.0,0.90249]
[1726070345925,0.10448046,56852.0,56851.0,0.9929024]
[1726070346154,0.10448046,56852.0,56851.0,1.3446984]
[1726070346385,0.10448046,56852.0,56851.0,0.93775]
[1726070346608,0.10448046,56852.0,56851.0,0.198898]
[1726070346821,0.10448046,56852.0,56851.0,0.550694]
[1726070347032,0.10448046,56852.0,56851.0,0.578694]
[1726070347964,0.10448046,56852.0,56851.0,0.96575]
[1726070348401,0.28237546,56852.0,56851.0,0.051]
[1726070348622,0.66416546,56852.0,56851.0,0.028]
[1726070349072,1.01595546,56852.0,56851.0,0.028]
[1726070349343,0.66416546,56852.0,56851.0,0.028]
[1726070349601,0.66416546,56852.0,56851.0,0.014]
[1726070349840,0.002,56848.0,56844.0,0.351834]
[1726070350064,0.002,56848.0,56833.0,0.175951]
[1726070350065,1.114737,56848.0,56833.0,0.175951]
[1726070350294,1.114737,56848.0,56831.0,0.175959]
[1726070350524,1.114737,56848.0,56821.0,0.17616955]
[1726070350525,0.1711,56833.0,56824.0,0.03526]
[1726070350755,0.175986,56823.0,56818.0,0.175999]
[1726070350980,0.0759,56828.0,56810.0,0.52535264]
[1726070351221,0.4771,56850.0,56801.0,0.36332638]
[1726070351222,0.0759,56836.0,56835.0,0.175947]
[1726070351441,0.0658,56838.0,56837.0,0.175941]
[1726070351897,0.0658,56838.0,56837.0,0.527824]
[1726070352118,0.0658,56838.0,56836.0,0.351888]
[1726070352119,0.0658,56838.0,56836.0,0.175943]
[1726070352589,0.0658,56838.0,56837.0,0.175941]
[1726070352811,0.1059,56840.0,56834.0,0.3749]
[1726070352812,0.0759,56840.0,56839.0,0.023]
[1726070353264,0.1059,56840.0,56839.0,0.023]
[1726070353699,0.1059,56840.0,56838.0,0.023]
[1726070353931,0.17572328,56839.0,56838.0,0.023]
[1726070354178,0.527815,56838.0,56837.0,0.014]
[1726070354451,1.461769,56838.0,56837.0,0.014]
[1726070355135,1.461769,56838.0,56823.0,0.175983]
[1726070355136,0.002,56828.0,56823.0,0.175983]
[1726070355372,0.002,56828.0,56821.0,0.35198]
[1726070355592,0.002,56828.0,56813.0,0.417526]
[1726070355593,0.002,56829.0,56822.0,0.387172]
[1726070355826,0.175977,56826.0,56820.0,0.374984]
[1726070356071,0.0644,56825.0,56810.0,0.30350695]
[1726070356296,0.175986,56823.0,56812.0,0.352036]
[1726070356518,0.0624,56825.0,56818.0,0.351998]
[1726070356746,0.0624,56825.0,56821.0,0.175989]
[1726070357021,0.0624,56825.0,56822.0,0.015]
[1726070357233,0.0624,56825.0,56822.0,0.003]
[1726070357234,0.02759465,56824.0,56822.0,0.003]
[1726070357447,0.02759465,56824.0,56823.0,0.198985]
[1726070357662,0.02759465,56824.0,56823.0,0.023]
[1726070357887,0.02759465,56824.0,56822.0,0.003]
[1726070358101,0.002,56823.0,56822.0,0.003]
[1726070358333,0.02759465,56824.0,56820.0,0.175993]
[1726070358560,0.02759465,56824.0,56821.0,0.19899]
[1726070359009,0.02759465,56824.0,56820.0,0.198993]
[1726070359454,0.43157,56823.0,56822.0,0.014]
[1726070359677,0.607555,56823.0,56822.0,0.014]
[1726070359903,0.1096,56823.0,56821.0,0.014]
[1726070360129,1.403516,56822.0,56821.0,0.028]
[1726070360382,0.759664,56822.0,56821.0,0.014]
[1726070360595,0.377688,56822.0,56821.0,0.014]
[1726070360858,0.407688,56822.0,56821.0,0.014]
[1726070361082,0.759664,56822.0,56821.0,0.014]
[1726070361305,0.759664,56822.0,56808.0,0.3533398]
[1726070361306,0.1697,56822.0,56815.0,0.023]
[1726070361529,0.0796,56822.0,56821.0,0.198991]
[1726070361759,0.002,56823.0,56822.0,0.175988]
[1726070361978,0.002,56823.0,56822.0,0.198988]
[1726070362210,0.002,56823.0,56822.0,0.94171937]
[1726070362435,0.002,56823.0,56822.0,1.290176]
[1726070362652,0.0804,56832.0,56831.0,0.55088]
[1726070363092,0.0804,56832.0,56831.0,0.58614]
[1726070363324,0.0804,56832.0,56831.0,0.23422]
[1726070363973,0.1104,56832.0,56822.0,0.36597]
[1726070364208,0.639271,56832.0,56831.0,0.014]
[1726070364932,0.639271,56832.0,56831.0,0.028]
[1726070365165,0.993185,56832.0,56831.0,0.028]
[1726070365384,0.63886262,56832.0,56831.0,0.028]
[1726070365636,0.10799162,56832.0,56831.0,0.014]
[1726070365868,0.10799162,56832.0,56831.0,0.18996]
[1726070366088,0.28394862,56832.0,56831.0,0.014]
[1726070366308,0.10799162,56832.0,56831.0,0.18996]
[1726070366518,0.10799162,56832.0,56831.0,0.20396]
[1726070366749,0.10799162,56832.0,56831.0,0.55588]
[1726070366998,0.02759162,56832.0,56831.0,0.96606]
[1726070367254,0.02759162,56832.0,56831.0,1.8820067]
[1726070367748,0.001514,56845.0,56844.0,0.93786]
[1726070367994,0.001514,56845.0,56844.0,1.2897]
[1726070368252,0.001514,56845.0,56844.0,1.4328]
[1726070368253,0.02909658,56845.0,56844.0,1.4328]
[1726070368492,0.02909658,56845.0,56844.0,1.96080955]
[1726070368754,0.02909658,56845.0,56844.0,1.2897]
[1726070369440,0.02909658,56845.0,56844.0,1.3037]
[1726070369671,0.02909658,56845.0,56844.0,0.61402]
[1726070369898,0.02909658,56845.0,56844.0,0.9166]
[1726070370344,0.02909658,56845.0,56844.0,0.028]
[1726070370563,0.02909658,56845.0,56842.0,0.351851]
[1726070370778,0.02909658,56845.0,56830.0,0.38420695]
[1726070370995,0.20501258,56845.0,56844.0,0.014]
[1726070371215,0.001514,56845.0,56844.0,0.014]
[1726070371444,0.001514,56845.0,56844.0,0.17592]
[1726070372124,0.001514,56845.0,56844.0,0.014]
[1726070372396,0.03,56843.0,56831.0,0.351918]
[1726070372628,0.31913,56845.0,56832.0,0.351911]
[1726070372629,0.03,56842.0,56832.0,0.351911]
[1726070372851,0.03,56839.0,56838.0,0.175937]
[1726070373281,0.03,56839.0,56836.0,0.351887]
[1726070373502,0.205935,56839.0,56838.0,0.023]
[1726070373727,0.03,56839.0,56833.0,0.05826]
[1726070373960,0.175943,56837.0,56833.0,0.023]
[1726070374400,0.175943,56837.0,56833.0,0.198953]
[1726070374619,0.1437,56838.0,56836.0,0.175944]
[1726070374851,0.1423,56843.0,56836.0,0.03526]
[1726070375100,0.1423,56843.0,56840.0,0.023]
[1726070375329,0.1423,56843.0,56842.0,0.550778]
[1726070375554,0.0808,56843.0,56842.0,0.90263]
[1726070375785,0.078,56847.0,56844.0,0.55076]
[1726070376245,0.03,56851.0,56844.0,1.2897]
[1726070376469,0.02909787,56845.0,56844.0,1.2897]
[1726070376699,0.02909787,56845.0,56844.0,1.69644695]
[1726070377374,0.02909787,56845.0,56844.0,2.04828695]
[1726070377593,0.02909787,56845.0,56844.0,2.2597165]
[1726070377594,0.001514,56845.0,56844.0,2.2597165]
[1726070378279,0.001514,56845.0,56844.0,2.2737165]
[1726070378509,0.001514,56845.0,56844.0,1.97020955]
[1726070379877,0.001514,56845.0,56844.0,1.3811]
[1726070380134,0.001514,56845.0,56844.0,1.3671]
[1726070380408,0.002331,56845.0,56844.0,1.3671]
[1726070380625,0.002331,56845.0,56844.0,1.3811]
[1726070381305,0.002331,56845.0,56844.0,1.3671]
[1726070381534,0.002331,56845.0,56844.0,1.3037]
[1726070381768,0.002331,56845.0,56844.0,1.3177]
[1726070386087,0.002331,56845.0,56844.0,1.66954]
[1726070387641,0.002331,56845.0,56844.0,1.2947]
[1726070388761,0.002331,56845.0,56844.0,1.66954]
[1726070388978,0.002331,56845.0,56844.0,1.81174]
[1726070389194,0.02758027,56849.0,56844.0,1.81174]
[1726070389195,0.02758027,56849.0,56848.0,1.289612]
[1726070389424,0.02758027,56849.0,56848.0,1.46578155]
[1726070389644,0.02758027,56849.0,56848.0,1.81759655]
[1726070389860,0.02758027,56849.0,56848.0,1.46578155]
[1726070390074,0.02758027,56849.0,56848.0,1.289612]
[1726070390774,0.02758027,56849.0,56848.0,1.303612]
[1726070390985,0.02758027,56849.0,56848.0,1.317612]
[1726070391201,0.000818,56859.0,56858.0,0.175876]
[1726070392070,0.064018,56859.0,56858.0,0.527629]
[1726070392276,0.064018,56859.0,56858.0,0.175876]
[1726070392705,0.064018,56859.0,56858.0,0.527629]
[1726070392913,0.064018,56859.0,56858.0,0.175876]
[1726070393117,0.064018,56859.0,56858.0,0.189876]
[1726070393774,0.064018,56859.0,56858.0,0.555629]
[1726070394202,0.09159556,56859.0,56858.0,0.203876]
[1726070394425,0.09159556,56859.0,56858.0,0.028]
[1726070394876,0.09159556,56859.0,56838.0,0.351871]
[1726070394877,0.1373,56846.0,56827.0,0.30350695]
[1726070395121,0.03,56843.0,56841.0,0.175927]
[1726070395434,0.03,56844.0,56843.0,0.17592]
[1726070395531,0.03,56844.0,56828.0,0.03526]
[1726070395769,0.03,56844.0,56827.0,0.30350695]
[1726070395770,0.02758488,56843.0,56842.0,0.527778]
[1726070396766,0.02858488,56843.0,56842.0,0.563038]
[1726070396994,0.02858488,56843.0,56842.0,0.91489]
[1726070396995,0.02758488,56843.0,56842.0,0.91489]
[1726070397236,0.02858488,56843.0,56842.0,1.266482]
[1726070397480,0.02858488,56843.0,56842.0,0.92863]
[1726070397942,0.02858488,56843.0,56842.0,0.91463]
[1726070398201,0.02858488,56843.0,56842.0,0.90263]
[1726070398202,0.02758488,56843.0,56842.0,0.90263]
[1726070398456,0.02758488,56843.0,56842.0,0.91663]
[1726070398714,0.02758488,56843.0,56842.0,0.95189]
[1726070398952,0.02758488,56843.0,56842.0,0.541778]
[1726070399240,0.02758488,56843.0,56842.0,0.89363]
[1726070399446,0.02858488,56843.0,56842.0,0.90563]
[1726070399671,0.02858488,56843.0,56842.0,0.89163]
[1726070399905,0.02858488,56843.0,56842.0,0.89263]
[1726070400170,0.02958488,56843.0,56842.0,0.90463]
[1726070401109,0.03058488,56843.0,56842.0,0.012]
[1726070401358,0.03058488,56843.0,56832.0,0.001634]
[1726070401359,0.0193,56842.0,56833.0,0.023]
[1726070401868,0.032,56834.0,56833.0,0.023]
[1726070402120,0.032,56834.0,56833.0,0.198954]
[1726070402390,0.1138,56834.0,56833.0,0.198954]
[1726070402612,0.1741,56834.0,56833.0,0.023]
[1726070403829,0.350054,56833.0,56832.0,0.001634]
[1726070404071,0.1721,56833.0,56832.0,0.001634]
[1726070404329,0.524008,56833.0,56832.0,0.001634]
[1726070404548,0.1721,56833.0,56832.0,0.001634]
[1726070404797,0.17158559,56833.0,56832.0,0.001634]
[1726070405275,0.35053959,56833.0,56832.0,0.001634]
[1726070405499,0.76444759,56833.0,56832.0,0.001634]
[1726070405985,1.11635559,56833.0,56832.0,0.001634]
[1726070406228,0.76444759,56833.0,56832.0,0.001634]
[1726070406665,0.40753959,56833.0,56832.0,0.001634]
[1726070407558,0.40953959,56833.0,56832.0,0.001634]
[1726070407779,0.002,56833.0,56832.0,0.91721195]
[1726070407997,0.02948559,56844.0,56837.0,0.17594]
[1726070408208,0.02948559,56844.0,56836.0,0.023]
[1726070408418,0.000818,56845.0,56841.0,0.175928]
[1726070408632,0.02948559,56844.0,56838.0,0.17945515]
[1726070408853,0.175927,56842.0,56834.0,0.023]
[1726070409065,0.351863,56841.0,56833.0,0.023]
[1726070409280,0.03,56842.0,56833.0,0.023]
[1726070409500,0.03,56835.0,56832.0,0.001634]
[1726070409739,0.05517695,56840.0,56839.0,0.175935]
[1726070409957,0.05517695,56840.0,56839.0,0.527806]
[1726070410179,0.05517695,56840.0,56839.0,0.9324576]
[1726070410394,0.05517695,56840.0,56839.0,0.879677]
[1726070410612,0.05517695,56840.0,56839.0,0.527806]
[1726070410966,0.05517695,56840.0,56835.0,0.351895]
[1726070410967,0.02758901,56840.0,56836.0,0.023]
[1726070411165,0.02858901,56840.0,56839.0,0.025]
[1726070411364,0.02958901,56840.0,56839.0,0.375871]
[1726070411571,0.02958901,56840.0,56839.0,0.550806]
[1726070411572,0.02858901,56840.0,56839.0,0.550806]
[1726070411771,0.02858901,56840.0,56839.0,0.023]
[1726070411973,0.02858901,56840.0,56832.0,0.001634]
[1726070412176,0.02858901,56840.0,56836.0,0.023]
[1726070412389,0.02858901,56840.0,56836.0,0.198844]
[1726070412772,0.02858901,56840.0,56839.0,0.001]
[1726070412984,0.02858901,56840.0,56836.0,0.374688]
[1726070413205,0.02858901,56840.0,56833.0,0.351907]
[1726070413206,0.02858901,56840.0,56834.0,0.351901]
[1726070413422,0.175937,56839.0,56836.0,0.001]
[1726070413628,0.175937,56839.0,56835.0,0.175947]
[1726070413857,0.175937,56839.0,56834.0,0.175549]
[1726070414059,0.175937,56839.0,56833.0,0.351807]